[Event "Late-Titled-Tuesday-Blitz-March-05-2024"]
[Site "Chess.com"]
[Date "2024.03.05"]
[Round "4"]
[White "giovannibrandao7"]
[Black "Quattroporte300"]
[Result "0-1"]
[WhiteElo "2224"]
[BlackElo "2462"]
[TimeControl "180+1"]
[EndTime "14:35:52 PST"]
[Termination "Quattroporte300 won by resignation"]

1. d4 {[%clk 0:03:00]} 1... g6 {[%clk 0:02:58]} 2. c4 {[%clk 0:03:00.1]} 2...
Bg7 {[%clk 0:02:58.7]} 3. Nc3 {[%clk 0:03:00.5]} 3... d6 {[%clk 0:02:59.3]} 4.
e4 {[%clk 0:03:00.9]} 4... Nd7 {[%clk 0:03:00]} 5. Nf3 {[%clk 0:03:01.3]} 5...
e5 {[%clk 0:02:59.7]} 6. h3 {[%clk 0:02:50.5]} 6... Ne7 {[%clk 0:02:59.4]} 7.
Be2 {[%clk 0:02:49.9]} 7... O-O {[%clk 0:02:58.8]} 8. O-O {[%clk 0:02:49.7]}
8... Nc6 {[%clk 0:02:55.7]} 9. dxe5 {[%clk 0:02:44.4]} 9... Ndxe5 {[%clk
0:02:54]} 10. Nxe5 {[%clk 0:02:37.3]} 10... Nxe5 {[%clk 0:02:49.3]} 11. Be3
{[%clk 0:02:32.3]} 11... Be6 {[%clk 0:02:47.5]} 12. Nd5 {[%clk 0:02:29]} 12...
c6 {[%clk 0:02:45.2]} 13. f4 {[%clk 0:02:26.3]} 13... cxd5 {[%clk 0:02:17.9]}
14. cxd5 {[%clk 0:02:25.7]} 14... Bxh3 {[%clk 0:01:18.7]} 15. fxe5 {[%clk
0:02:20.3]} 15... Qh4 {[%clk 0:01:13.8]} 16. gxh3 {[%clk 0:02:03.2]} 16... Qg3+
{[%clk 0:01:13.3]} 17. Kh1 {[%clk 0:01:52.3]} 17... Qxh3+ {[%clk 0:01:13.6]} 18.
Kg1 {[%clk 0:01:48.9]} 0-1

[Event "Late-Titled-Tuesday-Blitz-March-05-2024"]
[Site "Chess.com"]
[Date "2024.03.05"]
[Round "4"]
[White "RantomOpening"]
[Black "sergiochess83"]
[Result "0-1"]
[WhiteElo "2578"]
[BlackElo "2857"]
[TimeControl "180+1"]
[EndTime "14:36:09 PST"]
[Termination "sergiochess83 won by resignation"]

1. c4 {[%clk 0:02:38.4]} 1... e5 {[%clk 0:02:55.5]} 2. Nc3 {[%clk 0:02:37.9]}
2... Nf6 {[%clk 0:02:55.8]} 3. Nf3 {[%clk 0:02:38]} 3... Nc6 {[%clk 0:02:56.1]}
4. e3 {[%clk 0:02:38.1]} 4... Bb4 {[%clk 0:02:56.2]} 5. Qc2 {[%clk 0:02:37.6]}
5... Bxc3 {[%clk 0:02:56.6]} 6. Qxc3 {[%clk 0:02:37.3]} 6... Qe7 {[%clk
0:02:56.9]} 7. b3 {[%clk 0:02:33.7]} 7... d5 {[%clk 0:02:52.3]} 8. d4 {[%clk
0:02:33.6]} 8... e4 {[%clk 0:02:46.5]} 9. Ne5 {[%clk 0:02:33.7]} 9... O-O {[%clk
0:02:12.3]} 10. Nxc6 {[%clk 0:02:28.1]} 10... bxc6 {[%clk 0:02:12.2]} 11. a4
{[%clk 0:02:28.2]} 11... Re8 {[%clk 0:02:09.3]} 12. Ba3 {[%clk 0:02:27.5]} 12...
Qe6 {[%clk 0:02:09.1]} 13. h3 {[%clk 0:02:25.8]} 13... Bd7 {[%clk 0:02:08.7]}
14. Be2 {[%clk 0:02:25.2]} 14... Qf5 {[%clk 0:02:05.9]} 15. O-O {[%clk 0:02:23]}
15... Qg5 {[%clk 0:02:05.9]} 16. Kh1 {[%clk 0:02:19.7]} 16... Re6 {[%clk
0:01:59.5]} 17. cxd5 {[%clk 0:02:14.4]} 17... Nxd5 {[%clk 0:01:58.8]} 18. Qc5
{[%clk 0:02:14]} 18... Rg6 {[%clk 0:01:55.6]} 19. Rg1 {[%clk 0:01:49.9]} 19...
Qh4 {[%clk 0:01:55.8]} 20. Kh2 {[%clk 0:01:42.3]} 20... Qxf2 {[%clk 0:01:33.2]}
21. Bh5 {[%clk 0:01:28.4]} 21... Qg3+ {[%clk 0:01:26.4]} 22. Kh1 {[%clk
0:01:27.8]} 22... Rh6 {[%clk 0:01:27.3]} 0-1

[Event "Late-Titled-Tuesday-Blitz-March-05-2024"]
[Site "Chess.com"]
[Date "2024.03.05"]
[Round "4"]
[White "Binary010"]
[Black "ritanovikova"]
[Result "1-0"]
[WhiteElo "2819"]
[BlackElo "2217"]
[TimeControl "180+1"]
[EndTime "14:36:09 PST"]
[Termination "Binary010 won by resignation"]

1. d4 {[%clk 0:03:00.9]} 1... g6 {[%clk 0:02:58.7]} 2. e4 {[%clk 0:03:00.8]}
2... Bg7 {[%clk 0:02:54]} 3. Nc3 {[%clk 0:03:01.2]} 3... d6 {[%clk 0:02:54]} 4.
f4 {[%clk 0:03:01.3]} 4... e6 {[%clk 0:02:53.4]} 5. Nf3 {[%clk 0:03:01.1]} 5...
Ne7 {[%clk 0:02:53.7]} 6. Bd3 {[%clk 0:03:01.3]} 6... Nd7 {[%clk 0:02:53.4]} 7.
O-O {[%clk 0:03:01.3]} 7... c6 {[%clk 0:02:53.4]} 8. f5 {[%clk 0:02:47.6]} 8...
exf5 {[%clk 0:02:47.4]} 9. exf5 {[%clk 0:02:47.6]} 9... Nf6 {[%clk 0:02:46.6]}
10. fxg6 {[%clk 0:02:25.7]} 10... hxg6 {[%clk 0:02:45.1]} 11. Bg5 {[%clk
0:02:25.8]} 11... Bf5 {[%clk 0:02:32.9]} 12. Nh4 {[%clk 0:02:13.4]} 12... Bxd3
{[%clk 0:02:26.5]} 13. Qxd3 {[%clk 0:02:13.2]} 13... Rxh4 {[%clk 0:02:19.1]} 14.
Bxh4 {[%clk 0:02:12.6]} 14... Nf5 {[%clk 0:02:17.1]} 15. Rae1+ {[%clk
0:02:00.2]} 15... Kd7 {[%clk 0:02:13.5]} 16. Rxf5 {[%clk 0:01:55]} 16... gxf5
{[%clk 0:02:08.2]} 17. Qxf5+ {[%clk 0:01:55]} 17... Kc7 {[%clk 0:02:09.1]} 18.
Rf1 {[%clk 0:01:55]} 18... Qe8 {[%clk 0:01:52.5]} 19. Bxf6 {[%clk 0:01:54.7]}
19... Qe3+ {[%clk 0:01:51.3]} 20. Qf2 {[%clk 0:01:48.9]} 20... Bh6 {[%clk
0:01:44.9]} 21. Qxe3 {[%clk 0:01:47.6]} 21... Bxe3+ {[%clk 0:01:45.8]} 22. Kh1
{[%clk 0:01:48.1]} 22... Re8 {[%clk 0:01:44.5]} 23. Re1 {[%clk 0:01:45.5]} 23...
Re6 {[%clk 0:01:44.3]} 24. g3 {[%clk 0:01:39.3]} 24... d5 {[%clk 0:01:39.5]} 25.
Be5+ {[%clk 0:01:37.8]} 25... Rxe5 {[%clk 0:01:30.2]} 26. dxe5 {[%clk
0:01:38.7]} 26... d4 {[%clk 0:01:30.1]} 27. Nd1 {[%clk 0:01:36.1]} 1-0

[Event "Late-Titled-Tuesday-Blitz-March-05-2024"]
[Site "Chess.com"]
[Date "2024.03.05"]
[Round "4"]
[White "giomar27"]
[Black "chucksterf10"]
[Result "1/2-1/2"]
[WhiteElo "2420"]
[BlackElo "2564"]
[TimeControl "180+1"]
[EndTime "14:36:23 PST"]
[Termination "Game drawn by repetition"]

1. Nc3 {[%clk 0:03:00.9]} 1... g6 {[%clk 0:03:00.5]} 2. d4 {[%clk 0:03:00.4]}
2... f5 {[%clk 0:03:00.2]} 3. h4 {[%clk 0:02:59.4]} 3... Nf6 {[%clk 0:03:00.1]}
4. h5 {[%clk 0:02:59.9]} 4... Nxh5 {[%clk 0:02:59.4]} 5. Rxh5 {[%clk 0:02:56.2]}
5... gxh5 {[%clk 0:03:00.3]} 6. e4 {[%clk 0:02:56.6]} 6... d6 {[%clk 0:02:57.7]}
7. Qxh5+ {[%clk 0:02:56.4]} 7... Kd7 {[%clk 0:02:58.2]} 8. Bc4 {[%clk
0:02:46.8]} 8... e6 {[%clk 0:02:55.3]} 9. exf5 {[%clk 0:02:43.3]} 9... c6 {[%clk
0:02:51.1]} 10. Qf7+ {[%clk 0:02:19.3]} 10... Qe7 {[%clk 0:02:48.9]} 11. fxe6+
{[%clk 0:02:00.7]} 11... Kc7 {[%clk 0:02:47.9]} 12. Nf3 {[%clk 0:01:37]} 12...
d5 {[%clk 0:02:47.3]} 13. Bf4+ {[%clk 0:01:36]} 13... Kb6 {[%clk 0:02:47.7]} 14.
Na4+ {[%clk 0:01:33.3]} 14... Ka5 {[%clk 0:02:47.5]} 15. Bd2+ {[%clk 0:01:24.8]}
15... Kxa4 {[%clk 0:02:46.9]} 16. b3+ {[%clk 0:01:10.4]} 16... Ka3 {[%clk
0:02:46.9]} 17. Qf4 {[%clk 0:00:28.8]} 17... Qxe6+ {[%clk 0:02:45.2]} 18. Ne5
{[%clk 0:00:28.4]} 18... Bh6 {[%clk 0:02:37]} 19. Bc1+ {[%clk 0:00:19.7]} 19...
Kb4 {[%clk 0:02:36.4]} 20. Bd2+ {[%clk 0:00:19.9]} 20... Ka3 {[%clk 0:02:36.5]}
21. Bc1+ {[%clk 0:00:07.8]} 21... Kb4 {[%clk 0:02:34.1]} 22. Bd2+ {[%clk
0:00:03.1]} 22... Ka3 {[%clk 0:02:30.1]} 1/2-1/2

[Event "Late-Titled-Tuesday-Blitz-March-05-2024"]
[Site "Chess.com"]
[Date "2024.03.05"]
[Round "4"]
[White "toninhojit"]
[Black "s-dshubin"]
[Result "1-0"]
[WhiteElo "2511"]
[BlackElo "2323"]
[TimeControl "180+1"]
[EndTime "14:36:43 PST"]
[Termination "toninhojit won by checkmate"]

1. e4 {[%clk 0:03:00.9]} 1... e6 {[%clk 0:02:54.7]} 2. Nc3 {[%clk 0:02:59.5]}
2... d5 {[%clk 0:02:55.6]} 3. Nf3 {[%clk 0:03:00]} 3... Nf6 {[%clk 0:02:55.2]}
4. e5 {[%clk 0:03:00.4]} 4... Nfd7 {[%clk 0:02:55.8]} 5. d4 {[%clk 0:03:01.1]}
5... c5 {[%clk 0:02:56.7]} 6. Bg5 {[%clk 0:03:01.4]} 6... Qb6 {[%clk 0:02:55.7]}
7. dxc5 {[%clk 0:03:02]} 7... Bxc5 {[%clk 0:02:54.5]} 8. Qd2 {[%clk 0:03:00.2]}
8... Bxf2+ {[%clk 0:02:36.3]} 9. Qxf2 {[%clk 0:02:59.5]} 9... Qxb2 {[%clk
0:02:37.2]} 10. Rd1 {[%clk 0:02:55.3]} 10... Qxc3+ {[%clk 0:02:30.9]} 11. Bd2
{[%clk 0:02:55.4]} 11... Qc7 {[%clk 0:02:30.7]} 12. Qg3 {[%clk 0:02:50.6]} 12...
O-O {[%clk 0:02:01.8]} 13. Bd3 {[%clk 0:02:47.3]} 13... f6 {[%clk 0:01:49.7]}
14. Qh3 {[%clk 0:02:45]} 14... Nxe5 {[%clk 0:01:40.3]} 15. Qxh7+ {[%clk
0:02:30.4]} 15... Kf7 {[%clk 0:01:39.5]} 16. Ng5+ {[%clk 0:02:10.5]} 16... fxg5
{[%clk 0:01:13.4]} 17. O-O+ {[%clk 0:02:09.2]} 17... Ke8 {[%clk 0:01:07]} 18.
Rxf8+ {[%clk 0:02:09]} 18... Kxf8 {[%clk 0:01:06.4]} 19. Rf1+ {[%clk 0:02:05.6]}
19... Ke7 {[%clk 0:01:01.3]} 20. Bb4+ {[%clk 0:01:55.3]} 20... Kd7 {[%clk
0:00:59.2]} 21. Bb5+ {[%clk 0:01:53.8]} 21... Kd8 {[%clk 0:00:22]} 22. Rf8#
{[%clk 0:01:50.6]} 1-0

[Event "Late-Titled-Tuesday-Blitz-March-05-2024"]
[Site "Chess.com"]
[Date "2024.03.05"]
[Round "4"]
[White "BogdanDeac"]
[Black "zverr1"]
[Result "1-0"]
[WhiteElo "2968"]
[BlackElo "2597"]
[TimeControl "180+1"]
[EndTime "14:36:44 PST"]
[Termination "BogdanDeac won by checkmate"]

1. d4 {[%clk 0:03:00.9]} 1... Nf6 {[%clk 0:02:59.8]} 2. c4 {[%clk 0:03:00.7]}
2... g6 {[%clk 0:03:00]} 3. Nc3 {[%clk 0:03:00]} 3... d5 {[%clk 0:03:00.5]} 4.
Nf3 {[%clk 0:02:58.4]} 4... Bg7 {[%clk 0:03:00.3]} 5. e3 {[%clk 0:02:59]} 5...
O-O {[%clk 0:02:59.8]} 6. Bd2 {[%clk 0:02:59.6]} 6... c6 {[%clk 0:02:57]} 7. Rc1
{[%clk 0:02:58.6]} 7... Bg4 {[%clk 0:02:56.3]} 8. h3 {[%clk 0:02:57.3]} 8...
Bxf3 {[%clk 0:02:56.1]} 9. Qxf3 {[%clk 0:02:58.2]} 9... e6 {[%clk 0:02:56.4]}
10. Be2 {[%clk 0:02:53.9]} 10... Re8 {[%clk 0:02:55.6]} 11. O-O {[%clk
0:02:53.5]} 11... Qd6 {[%clk 0:02:51.5]} 12. Rfd1 {[%clk 0:02:52.9]} 12... Nbd7
{[%clk 0:02:51]} 13. Be1 {[%clk 0:02:52]} 13... Rac8 {[%clk 0:02:48]} 14. a3
{[%clk 0:02:50.7]} 14... e5 {[%clk 0:02:33.8]} 15. cxd5 {[%clk 0:02:48.8]} 15...
e4 {[%clk 0:02:27.3]} 16. Qg3 {[%clk 0:02:41.5]} 16... Qxg3 {[%clk 0:02:26.9]}
17. fxg3 {[%clk 0:02:42.4]} 17... Nxd5 {[%clk 0:02:17.8]} 18. Nxd5 {[%clk
0:02:40.9]} 18... cxd5 {[%clk 0:02:18]} 19. Bb5 {[%clk 0:02:41.4]} 19... Rxc1
{[%clk 0:01:46.3]} 20. Rxc1 {[%clk 0:02:40.1]} 20... Rd8 {[%clk 0:01:46.9]} 21.
Rc7 {[%clk 0:02:39.5]} 21... Nb6 {[%clk 0:01:40.3]} 22. Rxb7 {[%clk 0:02:39.7]}
22... Bh6 {[%clk 0:01:36.4]} 23. Kf2 {[%clk 0:02:39.2]} 23... Rc8 {[%clk
0:01:35.1]} 24. Bc3 {[%clk 0:02:39.3]} 24... Ra8 {[%clk 0:01:03.7]} 25. a4
{[%clk 0:02:33.4]} 25... Bf8 {[%clk 0:00:49.3]} 26. a5 {[%clk 0:02:29.3]} 26...
Nc4 {[%clk 0:00:47.5]} 27. Bc6 {[%clk 0:02:29.2]} 27... Rc8 {[%clk 0:00:27.3]}
28. Bxd5 {[%clk 0:02:25.9]} 28... Nxb2 {[%clk 0:00:27.7]} 29. Bxb2 {[%clk
0:02:21.1]} 29... Rc2+ {[%clk 0:00:28.6]} 30. Kf1 {[%clk 0:02:21.3]} 30... Bh6
{[%clk 0:00:29.5]} 31. Bxf7+ {[%clk 0:02:16.1]} 31... Kh8 {[%clk 0:00:26.2]} 32.
d5+ {[%clk 0:02:15]} 32... Bg7 {[%clk 0:00:25.5]} 33. Rb8+ {[%clk 0:02:14.8]}
33... Rc8 {[%clk 0:00:26.2]} 34. Rxc8# {[%clk 0:02:14.9]} 1-0

[Event "Late-Titled-Tuesday-Blitz-March-05-2024"]
[Site "Chess.com"]
[Date "2024.03.05"]
[Round "4"]
[White "WPWPWP-2015"]
[Black "titomagno_64"]
[Result "1-0"]
[WhiteElo "2490"]
[BlackElo "2304"]
[TimeControl "180+1"]
[EndTime "14:36:47 PST"]
[Termination "WPWPWP-2015 won by resignation"]

1. d4 {[%clk 0:03:00.9]} 1... Nf6 {[%clk 0:02:59.3]} 2. c4 {[%clk 0:03:01]} 2...
g6 {[%clk 0:02:59.9]} 3. Nc3 {[%clk 0:02:59.9]} 3... d5 {[%clk 0:03:00.5]} 4.
Nf3 {[%clk 0:02:59.4]} 4... Bg7 {[%clk 0:03:00.6]} 5. Qb3 {[%clk 0:02:59.1]}
5... dxc4 {[%clk 0:03:00.5]} 6. Qxc4 {[%clk 0:02:59.4]} 6... O-O {[%clk
0:03:01.2]} 7. e4 {[%clk 0:02:59.3]} 7... Nc6 {[%clk 0:03:01.9]} 8. Be2 {[%clk
0:02:58.7]} 8... Bg4 {[%clk 0:02:59]} 9. Be3 {[%clk 0:02:49.4]} 9... Nd7 {[%clk
0:02:58.2]} 10. O-O {[%clk 0:02:46.3]} 10... Nb6 {[%clk 0:02:58]} 11. Qd3 {[%clk
0:02:45.7]} 11... Bxf3 {[%clk 0:02:51.2]} 12. Bxf3 {[%clk 0:02:45.3]} 12... Nxd4
{[%clk 0:02:50.7]} 13. Bg4 {[%clk 0:02:42.9]} 13... c6 {[%clk 0:02:39.1]} 14.
Rad1 {[%clk 0:02:39.1]} 14... e5 {[%clk 0:02:36.1]} 15. f4 {[%clk 0:02:38.9]}
15... c5 {[%clk 0:02:33.3]} 16. f5 {[%clk 0:02:37.8]} 16... gxf5 {[%clk
0:02:13.1]} 17. exf5 {[%clk 0:02:37.3]} 17... Qh4 {[%clk 0:01:55.6]} 18. Qe4
{[%clk 0:02:25.1]} 18... Nc4 {[%clk 0:01:41.3]} 19. g3 {[%clk 0:02:21.3]} 19...
Qd8 {[%clk 0:01:32.2]} 20. f6 {[%clk 0:02:13.5]} 20... Bxf6 {[%clk 0:01:19.7]}
21. Nd5 {[%clk 0:02:01.1]} 21... Bg7 {[%clk 0:01:19.7]} 22. Bh6 {[%clk
0:01:56.5]} 22... f5 {[%clk 0:01:08.1]} 23. Bxf5 {[%clk 0:01:51.8]} 23... Nxf5
{[%clk 0:01:02.3]} 24. Bxg7 {[%clk 0:01:47.1]} 24... Nxg7 {[%clk 0:00:54.5]} 25.
Nf6+ {[%clk 0:01:44.4]} 25... Rxf6 {[%clk 0:00:47.2]} 26. Rxd8+ {[%clk
0:01:43.1]} 26... Rxd8 {[%clk 0:00:45.3]} 27. Rxf6 {[%clk 0:01:38.8]} 1-0

[Event "Late-Titled-Tuesday-Blitz-March-05-2024"]
[Site "Chess.com"]
[Date "2024.03.05"]
[Round "4"]
[White "Bugcrusher"]
[Black "janhelmer03"]
[Result "0-1"]
[WhiteElo "2525"]
[BlackElo "2407"]
[TimeControl "180+1"]
[EndTime "14:36:50 PST"]
[Termination "janhelmer03 won by resignation"]

1. e4 {[%clk 0:02:56.2]} 1... c5 {[%clk 0:02:54.9]} 2. Nc3 {[%clk 0:02:55.1]}
2... Nc6 {[%clk 0:02:54.7]} 3. Bb5 {[%clk 0:02:54.3]} 3... g6 {[%clk 0:02:54]}
4. Bxc6 {[%clk 0:02:54]} 4... bxc6 {[%clk 0:02:54.4]} 5. d3 {[%clk 0:02:54.7]}
5... Bg7 {[%clk 0:02:52.7]} 6. f4 {[%clk 0:02:54.5]} 6... c4 {[%clk 0:02:45.9]}
7. dxc4 {[%clk 0:02:52.1]} 7... Bxc3+ {[%clk 0:02:45.7]} 8. bxc3 {[%clk
0:02:51.5]} 8... Qa5 {[%clk 0:02:36.5]} 9. Qd4 {[%clk 0:02:50.6]} 9... Nf6
{[%clk 0:02:36.2]} 10. e5 {[%clk 0:02:50.1]} 10... c5 {[%clk 0:02:31.1]} 11. Qe3
{[%clk 0:02:42.2]} 11... Ng4 {[%clk 0:02:29.4]} 12. Qf3 {[%clk 0:02:42]} 12...
Rb8 {[%clk 0:02:29]} 13. Ne2 {[%clk 0:02:38.5]} 13... h5 {[%clk 0:02:23.9]} 14.
O-O {[%clk 0:02:35.3]} 14... Bb7 {[%clk 0:02:23.6]} 15. Qd3 {[%clk 0:02:27.4]}
15... h4 {[%clk 0:02:13.5]} 16. h3 {[%clk 0:02:08]} 16... Nh6 {[%clk 0:02:11.9]}
17. Be3 {[%clk 0:02:05.1]} 17... Nf5 {[%clk 0:02:11.2]} 18. Bf2 {[%clk
0:02:05.1]} 18... Qc7 {[%clk 0:01:43.7]} 19. Rab1 {[%clk 0:01:58.4]} 19... O-O
{[%clk 0:01:27.6]} 20. Rb5 {[%clk 0:01:50.3]} 20... Qc6 {[%clk 0:01:26.2]} 21.
Qd5 {[%clk 0:01:49.8]} 21... Qxb5 {[%clk 0:01:12.6]} 22. Qxf7+ {[%clk
0:01:39.1]} 22... Kxf7 {[%clk 0:01:09.9]} 23. cxb5 {[%clk 0:01:40]} 23... Bd5
{[%clk 0:01:06.5]} 24. Bxc5 {[%clk 0:01:35]} 24... Bc4 {[%clk 0:00:56.7]} 25.
Rf2 {[%clk 0:01:27]} 25... Bxe2 {[%clk 0:00:56.8]} 26. Rxe2 {[%clk 0:01:26.7]}
26... Rxb5 {[%clk 0:00:57.5]} 0-1

[Event "Late-Titled-Tuesday-Blitz-March-05-2024"]
[Site "Chess.com"]
[Date "2024.03.05"]
[Round "4"]
[White "Bykov_Egor"]
[Black "Elsa167"]
[Result "0-1"]
[WhiteElo "2586"]
[BlackElo "2894"]
[TimeControl "180+1"]
[EndTime "14:36:55 PST"]
[Termination "Elsa167 won by checkmate"]

1. e4 {[%clk 0:03:00.9]} 1... c5 {[%clk 0:02:58.6]} 2. Nf3 {[%clk 0:02:59.9]}
2... e6 {[%clk 0:02:59.2]} 3. d4 {[%clk 0:03:00.2]} 3... cxd4 {[%clk 0:03:00.1]}
4. Nxd4 {[%clk 0:03:00.7]} 4... Nf6 {[%clk 0:03:00.6]} 5. Nc3 {[%clk 0:03:01.3]}
5... Nc6 {[%clk 0:03:01.1]} 6. Nxc6 {[%clk 0:03:00.3]} 6... bxc6 {[%clk
0:03:02]} 7. e5 {[%clk 0:03:00.6]} 7... Nd5 {[%clk 0:03:02.6]} 8. Ne4 {[%clk
0:03:01.2]} 8... Qc7 {[%clk 0:03:03.1]} 9. f4 {[%clk 0:03:01.5]} 9... Rb8 {[%clk
0:03:03.7]} 10. c4 {[%clk 0:02:39]} 10... Bb4+ {[%clk 0:03:03.2]} 11. Ke2 {[%clk
0:02:35.9]} 11... O-O {[%clk 0:03:02.7]} 12. Kf3 {[%clk 0:02:02.6]} 12... f6
{[%clk 0:02:54.7]} 13. cxd5 {[%clk 0:01:41.7]} 13... cxd5 {[%clk 0:02:54.9]} 14.
Nc3 {[%clk 0:01:13.5]} 14... fxe5 {[%clk 0:02:33.5]} 15. Ne2 {[%clk 0:00:47.9]}
15... exf4 {[%clk 0:02:26.5]} 16. Nxf4 {[%clk 0:00:42.5]} 16... e5 {[%clk
0:02:13.4]} 17. Bd3 {[%clk 0:00:21.8]} 17... e4+ {[%clk 0:02:06.8]} 18. Ke2
{[%clk 0:00:20.9]} 18... Rxf4 {[%clk 0:01:58.8]} 19. Bxf4 {[%clk 0:00:15.4]}
19... Qxf4 {[%clk 0:01:59.7]} 20. Qc1 {[%clk 0:00:06.4]} 20... exd3+ {[%clk
0:01:58.9]} 21. Kd1 {[%clk 0:00:04.3]} 21... Qg4# {[%clk 0:01:57.3]} 0-1

[Event "Late-Titled-Tuesday-Blitz-March-05-2024"]
[Site "Chess.com"]
[Date "2024.03.05"]
[Round "4"]
[White "ljuks68"]
[Black "bazar-wokzal"]
[Result "1-0"]
[WhiteElo "2428"]
[BlackElo "2560"]
[TimeControl "180+1"]
[EndTime "14:37:10 PST"]
[Termination "ljuks68 won by resignation"]

1. e4 {[%clk 0:02:44.2]} 1... c5 {[%clk 0:02:58.8]} 2. Nf3 {[%clk 0:02:44]} 2...
d6 {[%clk 0:02:58.8]} 3. d4 {[%clk 0:02:44.5]} 3... cxd4 {[%clk 0:02:58.9]} 4.
Nxd4 {[%clk 0:02:45.3]} 4... Nf6 {[%clk 0:02:58.8]} 5. Nc3 {[%clk 0:02:45.9]}
5... a6 {[%clk 0:02:58.2]} 6. Bg5 {[%clk 0:02:46.1]} 6... e6 {[%clk 0:02:56.4]}
7. f4 {[%clk 0:02:46.4]} 7... Be7 {[%clk 0:02:56.2]} 8. Qf3 {[%clk 0:02:46.6]}
8... Qc7 {[%clk 0:02:48.8]} 9. O-O-O {[%clk 0:02:46.5]} 9... Nbd7 {[%clk
0:02:41.7]} 10. g4 {[%clk 0:02:45.8]} 10... b5 {[%clk 0:02:39]} 11. Bxf6 {[%clk
0:02:45.4]} 11... Bxf6 {[%clk 0:02:24]} 12. Bxb5 {[%clk 0:02:44.1]} 12... axb5
{[%clk 0:02:23.7]} 13. Ndxb5 {[%clk 0:02:43.9]} 13... Qb8 {[%clk 0:02:06.2]} 14.
Nxd6+ {[%clk 0:02:43.9]} 14... Kf8 {[%clk 0:01:59.3]} 15. e5 {[%clk 0:02:36.9]}
15... Be7 {[%clk 0:01:51.4]} 16. Nxc8 {[%clk 0:02:35.8]} 16... Qxc8 {[%clk
0:01:48.2]} 17. Rxd7 {[%clk 0:02:35.6]} 17... Rxa2 {[%clk 0:01:38.6]} 18. Nxa2
{[%clk 0:02:27.1]} 18... Qxd7 {[%clk 0:01:38.1]} 19. Qa8+ {[%clk 0:02:26]} 19...
Qd8 {[%clk 0:01:36.3]} 20. Qxd8+ {[%clk 0:02:24.1]} 20... Bxd8 {[%clk
0:01:36.2]} 21. Nc3 {[%clk 0:02:18.6]} 21... Bb6 {[%clk 0:01:33.2]} 22. Kd2
{[%clk 0:02:04.5]} 22... Ke7 {[%clk 0:01:32.8]} 23. Ke2 {[%clk 0:02:01.4]} 23...
Bd4 {[%clk 0:01:27.9]} 24. Nb5 {[%clk 0:01:51.7]} 24... Bc5 {[%clk 0:01:18.1]}
25. Ra1 {[%clk 0:01:44.7]} 25... Rb8 {[%clk 0:01:17]} 26. c4 {[%clk 0:01:44.3]}
26... f6 {[%clk 0:01:14.2]} 27. Ra6 {[%clk 0:01:36.8]} 27... g5 {[%clk
0:01:05.6]} 28. exf6+ {[%clk 0:01:31.9]} 28... Kxf6 {[%clk 0:01:05.6]} 29. f5
{[%clk 0:01:32.2]} 29... Bb6 {[%clk 0:00:54.1]} 30. fxe6 {[%clk 0:01:23.5]}
30... Kxe6 {[%clk 0:00:52.9]} 31. c5 {[%clk 0:01:22.8]} 1-0

[Event "Late-Titled-Tuesday-Blitz-March-05-2024"]
[Site "Chess.com"]
[Date "2024.03.05"]
[Round "4"]
[White "GAO"]
[Black "Inepton_Fermion"]
[Result "1-0"]
[WhiteElo "2303"]
[BlackElo "2459"]
[TimeControl "180+1"]
[EndTime "14:37:20 PST"]
[Termination "GAO won on time"]

1. Nf3 {[%clk 0:03:00.9]} 1... Nf6 {[%clk 0:00:22.2]} 2. d4 {[%clk 0:02:59.1]}
2... b6 {[%clk 0:00:22.3]} 3. Bf4 {[%clk 0:02:59.3]} 3... Bb7 {[%clk 0:00:22.8]}
4. e3 {[%clk 0:03:00]} 4... e6 {[%clk 0:00:23.3]} 5. Be2 {[%clk 0:03:00.7]} 5...
h6 {[%clk 0:00:23.8]} 6. O-O {[%clk 0:03:01]} 6... Nh5 {[%clk 0:00:24.5]} 7. Be5
{[%clk 0:02:56.2]} 7... d6 {[%clk 0:00:24.7]} 8. Bg3 {[%clk 0:02:49.7]} 8...
Nxg3 {[%clk 0:00:24.5]} 9. hxg3 {[%clk 0:02:50.6]} 9... g6 {[%clk 0:00:24.3]}
10. c4 {[%clk 0:02:50.7]} 10... Bg7 {[%clk 0:00:24.8]} 11. Nc3 {[%clk
0:02:51.4]} 11... O-O {[%clk 0:00:25.2]} 12. Re1 {[%clk 0:02:46.9]} 12... Nd7
{[%clk 0:00:25.5]} 13. Bd3 {[%clk 0:02:44.3]} 13... Qe7 {[%clk 0:00:25.4]} 14.
e4 {[%clk 0:02:39.2]} 14... e5 {[%clk 0:00:25.5]} 15. d5 {[%clk 0:02:36.7]}
15... a5 {[%clk 0:00:24.2]} 16. b3 {[%clk 0:02:36.2]} 16... Nc5 {[%clk 0:00:24]}
17. Bc2 {[%clk 0:02:36.1]} 17... Bc8 {[%clk 0:00:24.2]} 18. a3 {[%clk
0:02:35.4]} 18... Bg4 {[%clk 0:00:21.4]} 19. b4 {[%clk 0:02:25.3]} 19... axb4
{[%clk 0:00:13]} 20. axb4 {[%clk 0:02:26.2]} 20... Nd7 {[%clk 0:00:13.3]} 21.
Nb5 {[%clk 0:02:23.4]} 21... Nf6 {[%clk 0:00:10.5]} 22. Qd3 {[%clk 0:02:17.5]}
22... h5 {[%clk 0:00:08]} 23. Qc3 {[%clk 0:02:16.9]} 23... Bh6 {[%clk
0:00:07.2]} 24. Rxa8 {[%clk 0:02:09.7]} 24... Rxa8 {[%clk 0:00:06.8]} 25. Ra1
{[%clk 0:02:10.6]} 25... Rxa1+ {[%clk 0:00:02.9]} 26. Qxa1 {[%clk 0:02:11.5]}
26... Qd8 {[%clk 0:00:02.9]} 27. Qa7 {[%clk 0:02:09.6]} 27... Ne8 {[%clk
0:00:03.1]} 28. c5 {[%clk 0:02:05.9]} 28... bxc5 {[%clk 0:00:02.7]} 29. bxc5
{[%clk 0:02:06.8]} 29... dxc5 {[%clk 0:00:01.6]} 30. Qxc5 {[%clk 0:02:07.7]}
30... Kg7 {[%clk 0:00:01.1]} 31. Nxe5 {[%clk 0:02:03]} 31... Be2 {[%clk
0:00:01.5]} 32. Nc6 {[%clk 0:01:56.2]} 1-0